[Event "LJ Slovak Open 2022"]
[Site "Liptovsky Jan"]
[Date "2022.06.26"]
[Round "6.38"]
[White "Marcek, Jan"]
[Black "Stefanides, Karol"]
[Result "1-0"]
[ECO "B28"]
[WhiteElo "1588"]
[BlackElo "1438"]
[Annotator "NA RC"]
[PlyCount "50"]
[EventDate "2022.06.23"]
[EventType "swiss"]
[EventCountry "SVK"]
[SourceTitle "playchess.com"]
[Source "ChessBase"]
[SourceQuality "1"]
[TimeControl "3600+30"]

1. e4 {[%emt 0:00:11]} c5 {[%emt 0:00:10]} 2. Nf3 {[%emt 0:00:05]} a6 {[%emt 0:00:32]} 3. c3 {[%emt 0:00:48]} d6 {[%emt 0:00:36]} 4. Be2 {[%emt 0:00:18]} Nf6 {[%emt 0:01:05]} 5. d3 {[%emt 0:00:31]} g6 {[%emt 0:01:26]} 6. h3 {[%emt 0:00:00]} Bg7 {[%emt 0:00:18]} 7. Be3 {[%emt 0:00:19]} b6 {[%emt 0:01:41]} 8. Nbd2 {[%emt 0:00:49]} Bb7 {[%emt 0:00:59]} 9. O-O {[%emt 0:00:32]} O-O {[%emt 0:00:18]} 10. Nh2 {[%emt 0:00:34]} Nc6 {[%emt 0:02:06]} 11. f4 {[%emt 0:00:16]} e6 {[%emt 0:03:01]} 12. Qe1 {[%emt 0:01:33]} Nd7 {[%emt 0:01:41]} 13. Qg3 {[%emt 0:07:52]} f5 {[%emt 0:03:26]} 14. Nc4 {[%emt 0:01:19]} Qe7 {[%emt 0:00:37]} 15. Nf3 {[%emt 0:02:46]} b5 {[%emt 0:00:53]} 16. Ncd2 {[%emt 0:02:48]} Qe8 {[%emt 0:02:13]} 17. Kf2 {[%emt 0:03:36]} e5 {[%emt 0:10:01]} 18. Rh1 {[%emt 0:04:28]} fxe4 {[%emt 0:02:57]} 19. Nxe4 {[%emt 0:00:20]} exf4 {[%emt 0:02:58]} 20. Bxf4 {[%emt 0:00:38]} Be5 {[%emt 0:02:53]} 21. Bxe5 {[%emt 0:03:39]} Ndxe5 {[%emt 0:06:38]} 22. Nxd6 {[%emt 0:00:30]} Qe7 {[%emt 0:00:30]} 23. Nxb7 {[%emt 0:00:26]} Qxb7 {[%emt 0:04:05]} 24. Rhf1 {[%emt 0:00:31]} Qe7 {[%emt 0:03:27]} 25. Rad1 {[%emt 0:01:12]} Nxf3 {[%emt 0:06:32]} 1-0

[Event "LJ Slovak Open 2022"]
[Site "Liptovsky Jan"]
[Date "2022.06.26"]
[Round "6.39"]
[White "Pisarcik, Richard"]
[Black "Carnecka, Stella"]
[Result "1-0"]
[ECO "B22"]
[WhiteElo "1343"]
[BlackElo "1648"]
[Annotator "NA RC"]
[PlyCount "99"]
[EventDate "2022.06.23"]
[EventType "swiss"]
[EventCountry "SVK"]
[SourceTitle "playchess.com"]
[Source "ChessBase"]
[SourceQuality "1"]
[TimeControl "3600+30"]

1. e4 {[%emt 0:00:07]} c5 {[%emt 0:00:04]} 2. Nf3 {[%emt 0:00:19]} Nc6 {[%emt 0:00:04]} 3. c3 {[%emt 0:01:02]} g6 {[%emt 0:00:30]} 4. d4 {[%emt 0:00:34]} cxd4 {[%emt 0:00:07]} 5. cxd4 {[%emt 0:00:20]} Bg7 {[%emt 0:00:45]} 6. Nc3 {[%emt 0:00:49]} d6 {[%emt 0:00:42]} 7. Be3 {[%emt 0:03:34]} a6 {[%emt 0:01:32]} 8. Be2 {[%emt 0:05:38]} e6 {[%emt 0:05:44]} 9. Qd2 {[%emt 0:00:57]} Bd7 {[%emt 0:01:22]} 10. a4 {[%emt 0:00:32]} Na5 {[%emt 0:04:45]} 11. Qc2 {[%emt 0:01:06]} Rc8 {[%emt 0:11:26]} 12. O-O {[%emt 0:02:08]} Nf6 {[%emt 0:03:58]} 13. Bg5 {[%emt 0:03:32]} h6 {[%emt 0:00:33]} 14. Bf4 {[%emt 0:00:28]} Bc6 {[%emt 0:06:02]} 15. Bd3 {[%emt 0:04:26]} b5 {[%emt 0:07:04]} 16. axb5 {[%emt 0:00:50]} Bxb5 {[%emt 0:02:30]} 17. Bxd6 {[%emt 0:08:04]} Qxd6 {[%emt 0:10:02]} 18. Nxb5 {[%emt 0:01:23]} axb5 {[%emt 0:05:27]} 19. Qxc8+ {[%emt 0:00:25]} Ke7 {[%emt 0:00:31]} 20. Qc5 {[%emt 0:00:40]} Qxc5 {[%emt 0:00:00]} 21. dxc5 {[%emt 0:00:14]} Nb3 {[%emt 0:00:00]} 22. Ra7+ {[%emt 0:00:14]} Kd8 {[%emt 0:00:07]} 23. Bxb5 {[%emt 0:00:44]} Nxe4 {[%emt 0:01:27]} 24. Rd1+ {[%emt 0:00:22]} Kc8 {[%emt 0:00:03]} 25. c6 {[%emt 0:00:47]} Nec5 {[%emt 0:00:41]} 26. Ra8+ {[%emt 0:00:33]} Kc7 {[%emt 0:00:08]} 27. Rxh8 {[%emt 0:01:09]} Bxh8 {[%emt 0:00:06]} 28. Bc4 {[%emt 0:00:27]} Kxc6 {[%emt 0:00:31]} 29. Bxb3 {[%emt 0:00:32]} Nxb3 {[%emt 0:00:06]} 30. Rd3 {[%emt 0:00:47]} Nc5 {[%emt 0:00:18]} 31. Rd2 {[%emt 0:00:30]} Kb5 {[%emt 0:01:01]} 32. Rd8 {[%emt 0:00:22]} Bf6 {[%emt 0:01:01]} 33. Rf8 {[%emt 0:00:24]} Kc4 {[%emt 0:00:20]} 34. Rxf7 {[%emt 0:00:30]} Bxb2 {[%emt 0:00:11]} 35. Rh7 {[%emt 0:00:26]} h5 {[%emt 0:00:19]} 36. Rh6 {[%emt 0:00:15]} e5 {[%emt 0:01:19]} 37. Rxg6 {[%emt 0:00:54]} e4 {[%emt 0:00:22]} 38. Ng5 {[%emt 0:00:32]} Bc1 {[%emt 0:00:23]} 39. Ne6 {[%emt 0:00:47]} Nd3 {[%emt 0:02:13]} 40. Nc7 {[%emt 0:00:28]} Kc3 {[%emt 0:02:11]} 41. Kf1 {[%emt 0:01:09]} Nb2 {[%emt 0:02:46]} 42. Nb5+ {[%emt 0:00:59]} Kd3 {[%emt 0:00:51]} 43. Rd6+ {[%emt 0:00:14]} Kc2 {[%emt 0:00:20]} 44. Nd4+ {[%emt 0:00:23]} Kb1 {[%emt 0:00:21]} 45. Rd5 {[%emt 0:00:36]} e3 {[%emt 0:01:17]} 46. fxe3 {[%emt 0:00:29]} Bxe3 {[%emt 0:00:06]} 47. Ke2 {[%emt 0:00:29]} Bg1 {[%emt 0:01:23]} 48. Nf3 {[%emt 0:00:37]} Ba7 {[%emt 0:01:00]} 49. Rxh5 {[%emt 0:00:45]} Kc2 {[%emt 0:00:11]} 50. g4 {[%emt 0:00:24]} 1-0

[Event "LJ Slovak Open 2022"]
[Site "Liptovsky Jan"]
[Date "2022.06.26"]
[Round "6.40"]
[White "Mazak, Ryan"]
[Black "Zelenka, Matej"]
[Result "1-0"]
[ECO "A04"]
[WhiteElo "1575"]
[BlackElo "1400"]
[Annotator "NA RC"]
[PlyCount "117"]
[EventDate "2022.06.23"]
[EventType "swiss"]
[EventCountry "SVK"]
[SourceTitle "playchess.com"]
[Source "ChessBase"]
[SourceQuality "1"]
[TimeControl "3600+30"]

1. Nf3 {[%emt 0:01:02]} d6 {[%emt 0:01:05]} 2. g3 {[%emt 0:01:03]} c5 {[%emt 0:01:12]} 3. Bg2 {[%emt 0:00:10]} e6 {[%emt 0:00:25]} 4. b3 {[%emt 0:01:23]} Nf6 {[%emt 0:00:41]} 5. Bb2 {[%emt 0:00:41]} Be7 {[%emt 0:00:42]} 6. d3 {[%emt 0:01:16]} O-O {[%emt 0:01:13]} 7. Nbd2 {[%emt 0:00:40]} Nc6 {[%emt 0:02:00]} 8. e4 {[%emt 0:02:17]} Qc7 {[%emt 0:01:07]} 9. O-O {[%emt 0:01:03]} Bd7 {[%emt 0:01:16]} 10. Ne1 {[%emt 0:04:20]} b5 {[%emt 0:05:01]} 11. f4 {[%emt 0:01:32]} e5 {[%emt 0:03:52]} 12. Nef3 {[%emt 0:02:31]} Nd4 {[%emt 0:00:23]} 13. Nxd4 {[%emt 0:02:20]} cxd4 {[%emt 0:00:10]} 14. Rc1 {[%emt 0:01:36]} b4 {[%emt 0:00:13]} 15. Nc4 {[%emt 0:00:55]} a5 {[%emt 0:01:45]} 16. h3 {[%emt 0:01:57]} g6 {[%emt 0:05:18]} 17. Qd2 {[%emt 0:01:29]} Kg7 {[%emt 0:00:42]} 18. Rf2 {[%emt 0:02:29]} Ng8 {[%emt 0:05:15]} 19. a3 {[%emt 0:04:44]} Rab8 {[%emt 0:01:12]} 20. Rcf1 {[%emt 0:03:07]} f5 {[%emt 0:00:18]} 21. Qe2 {[%emt 0:03:05]} Kh8 {[%emt 0:00:40]} 22. exf5 {[%emt 0:01:37]} bxa3 {[%emt 0:03:51]} 23. Bxa3 {[%emt 0:00:54]} exf4 {[%emt 0:00:26]} 24. Rxf4 {[%emt 0:00:44]} Rxf5 {[%emt 0:00:59]} 25. Rxf5 {[%emt 0:01:23]} Bxf5 {[%emt 0:00:52]} 26. Qf2 {[%emt 0:00:34]} Qa7 {[%emt 0:12:33]} 27. Nxd6 {[%emt 0:01:51]} Bg5 {[%emt 0:01:22]} 28. Nxf5 {[%emt 0:01:44]} gxf5 {[%emt 0:01:48]} 29. Qxf5 {[%emt 0:00:32]} Be3+ {[%emt 0:01:10]} 30. Kh2 {[%emt 0:00:17]} Bh6 {[%emt 0:01:34]} 31. Bc5 {[%emt 0:00:36]} Qg7 {[%emt 0:00:36]} 32. Be4 {[%emt 0:01:01]} Rd8 {[%emt 0:02:43]} 33. Bb6 {[%emt 0:01:16]} Rd6 {[%emt 0:01:06]} 34. Qc5 {[%emt 0:02:03]} Rd7 {[%emt 0:03:20]} 35. Bf5 {[%emt 0:01:53]} Rf7 {[%emt 0:03:45]} 36. Qxd4 {[%emt 0:00:50]} Nf6 {[%emt 0:01:04]} 37. Bd8 {[%emt 0:00:56]} Bd2 {[%emt 0:01:02]} 38. Bxf6 {[%emt 0:00:33]} Qxf6 {[%emt 0:00:49]} 39. Qxf6+ {[%emt 0:00:18]} Rxf6 {[%emt 0:00:03]} 40. Kg2 {[%emt 0:00:15]} Kg7 {[%emt 0:00:18]} 41. g4 {[%emt 0:00:18]} Rc6 {[%emt 0:00:16]} 42. c4 {[%emt 0:00:44]} Rb6 {[%emt 0:00:07]} 43. Rb1 {[%emt 0:00:24]} a4 {[%emt 0:00:05]} 44. c5 {[%emt 0:00:59]} Rb5 {[%emt 0:01:25]} 45. d4 {[%emt 0:00:50]} a3 {[%emt 0:00:17]} 46. c6 {[%emt 0:02:06]} Bf4 {[%emt 0:00:30]} 47. b4 {[%emt 0:02:16]} Bd6 {[%emt 0:00:12]} 48. Be6 {[%emt 0:02:44]} Kf6 {[%emt 0:00:34]} 49. Bc4 {[%emt 0:00:26]} Rb6 {[%emt 0:00:20]} 50. b5 {[%emt 0:00:47]} Ke7 {[%emt 0:00:42]} 51. Rf1 {[%emt 0:00:34]} Ke8 {[%emt 0:00:16]} 52. Rf6 {[%emt 0:01:00]} Ke7 {[%emt 0:00:18]} 53. Rf7+ {[%emt 0:00:16]} Ke8 {[%emt 0:00:07]} 54. Rxh7 {[%emt 0:00:53]} Be7 {[%emt 0:00:57]} 55. c7 {[%emt 0:00:34]} Kd7 {[%emt 0:00:33]} 56. Rxe7+ {[%emt 0:00:13]} Kc8 {[%emt 0:00:41]} 57. Be6+ {[%emt 0:00:13]} Rxe6 {[%emt 0:00:31]} 58. Rxe6 {[%emt 0:00:06]} a2 {[%emt 0:00:20]} 59. Ra6 {[%emt 0:00:08]} 1-0

[Event "LJ Slovak Open 2022"]
[Site "Liptovsky Jan"]
[Date "2022.06.26"]
[Round "6.41"]
[White "Vojtko, Imrich"]
[Black "Mikula, Maciej"]
[Result "1/2-1/2"]
[ECO "D00"]
[WhiteElo "1382"]
[BlackElo "1567"]
[Annotator "NA RC"]
[PlyCount "91"]
[EventDate "2022.06.23"]
[EventType "swiss"]
[EventCountry "SVK"]
[SourceTitle "playchess.com"]
[Source "ChessBase"]
[SourceQuality "1"]
[TimeControl "3600+30"]

1. g3 {[%emt 0:00:18]} d5 {[%emt 0:02:48]} 2. d4 {[%emt 0:00:32]} Nc6 {[%emt 0:01:11]} 3. Bg2 {[%emt 0:00:15]} Bg4 {[%emt 0:02:01]} 4. Bf3 {[%emt 0:02:10]} h5 {[%emt 0:12:28]} 5. Bf4 {[%emt 0:03:57]} e6 {[%emt 0:01:57]} 6. c3 {[%emt 0:00:12]} Bd6 {[%emt 0:01:49]} 7. e3 {[%emt 0:04:20]} Bxf3 {[%emt 0:10:22]} 8. Qxf3 {[%emt 0:00:14]} Bxf4 {[%emt 0:02:11]} 9. Qxf4 {[%emt 0:00:10]} g5 {[%emt 0:01:28]} 10. Qf3 {[%emt 0:00:13]} f5 {[%emt 0:00:56]} 11. Nd2 {[%emt 0:00:32]} Nf6 {[%emt 0:02:54]} 12. h4 {[%emt 0:03:21]} g4 {[%emt 0:00:09]} 13. Qe2 {[%emt 0:02:23]} Qd7 {[%emt 0:03:57]} 14. O-O-O {[%emt 0:00:18]} a6 {[%emt 0:01:29]} 15. Nb3 {[%emt 0:00:55]} Ne4 {[%emt 0:02:10]} 16. Nd2 {[%emt 0:00:51]} Nxd2 {[%emt 0:03:08]} 17. Qxd2 {[%emt 0:00:27]} b5 {[%emt 0:00:09]} 18. Kb1 {[%emt 0:00:54]} a5 {[%emt 0:01:11]} 19. Ne2 {[%emt 0:02:01]} Kf7 {[%emt 0:01:50]} 20. Nc1 {[%emt 0:00:36]} b4 {[%emt 0:02:40]} 21. Nd3 {[%emt 0:00:15]} Rhb8 {[%emt 0:01:21]} 22. cxb4 {[%emt 0:01:56]} axb4 {[%emt 0:02:11]} 23. Rc1 {[%emt 0:01:03]} Ke8 {[%emt 0:04:03]} 24. Rc5 {[%emt 0:00:23]} b3 {[%emt 0:00:54]} 25. a3 {[%emt 0:00:14]} Nd8 {[%emt 0:02:37]} 26. Rhc1 {[%emt 0:00:21]} Ra7 {[%emt 0:00:48]} 27. Ra5 {[%emt 0:02:05]} Rba8 {[%emt 0:03:28]} 28. Rxa7 {[%emt 0:00:22]} Rxa7 {[%emt 0:00:01]} 29. Qc3 {[%emt 0:00:34]} Qb5 {[%emt 0:00:28]} 30. Re1 {[%emt 0:02:00]} Nb7 {[%emt 0:00:47]} 31. Kc1 {[%emt 0:01:31]} Na5 {[%emt 0:00:40]} 32. Ne5 {[%emt 0:00:47]} Nc4 {[%emt 0:01:14]} 33. Nxc4 {[%emt 0:00:15]} Qxc4 {[%emt 0:00:22]} 34. Qxc4 {[%emt 0:00:23]} dxc4 {[%emt 0:00:01]} 35. Kd2 {[%emt 0:00:42]} Kd7 {[%emt 0:00:13]} 36. Kc3 {[%emt 0:00:08]} Ra4 {[%emt 0:00:04]} 37. e4 {[%emt 0:00:18]} Ra8 {[%emt 0:01:52]} 38. exf5 {[%emt 0:00:20]} exf5 {[%emt 0:00:07]} 39. Re5 {[%emt 0:00:26]} Rf8 {[%emt 0:00:48]} 40. Kxc4 {[%emt 0:01:04]} f4 {[%emt 0:00:17]} 41. Rxh5 {[%emt 0:03:33]} fxg3 {[%emt 0:00:09]} 42. fxg3 {[%emt 0:01:03]} Rf3 {[%emt 0:00:08]} 43. Rh7+ {[%emt 0:00:20]} Kd6 {[%emt 0:01:02]} 44. h5 {[%emt 0:00:24]} Rxg3 {[%emt 0:00:26]} 45. h6 {[%emt 0:00:22]} Rh3 {[%emt 0:00:45]} 46. Rg7 {[%emt 0:00:11]} 1/2-1/2

[Event "LJ Slovak Open 2022"]
[Site "Liptovsky Jan"]
[Date "2022.06.26"]
[Round "6.42"]
[White "Bohacek, Ludovit"]
[Black "Nedoba, Jakub"]
[Result "1-0"]
[ECO "B10"]
[WhiteElo "1594"]
[BlackElo "1158"]
[Annotator "NA RC"]
[PlyCount "57"]
[EventDate "2022.06.23"]
[EventType "swiss"]
[EventCountry "SVK"]
[SourceTitle "playchess.com"]
[Source "ChessBase"]
[SourceQuality "1"]
[TimeControl "3600+30"]

1. e4 {[%emt 0:00:21]} c6 {[%emt 0:01:23]} 2. c4 {[%emt 0:00:29]} d5 {[%emt 0:01:40]} 3. cxd5 {[%emt 0:00:46]} cxd5 {[%emt 0:00:08]} 4. Bb5+ {[%emt 0:00:47]} Bd7 {[%emt 0:02:25]} 5. Bxd7+ {[%emt 0:01:27]} Qxd7 {[%emt 0:00:26]} 6. e5 {[%emt 0:00:16]} Nc6 {[%emt 0:01:07]} 7. d4 {[%emt 0:00:31]} e6 {[%emt 0:00:31]} 8. Ne2 {[%emt 0:01:20]} Nge7 {[%emt 0:01:59]} 9. Ng3 {[%emt 0:00:55]} Ng6 {[%emt 0:01:15]} 10. O-O {[%emt 0:00:32]} Be7 {[%emt 0:01:24]} 11. Nc3 {[%emt 0:00:48]} O-O {[%emt 0:01:16]} 12. f4 {[%emt 0:00:13]} f5 {[%emt 0:02:26]} 13. Be3 {[%emt 0:00:59]} a6 {[%emt 0:01:34]} 14. Rc1 {[%emt 0:00:56]} Qd8 {[%emt 0:01:12]} 15. Na4 {[%emt 0:02:28]} Rc8 {[%emt 0:05:08]} 16. Nc5 {[%emt 0:00:27]} Bxc5 {[%emt 0:00:44]} 17. Rxc5 {[%emt 0:00:16]} b6 {[%emt 0:03:20]} 18. Rc1 {[%emt 0:01:32]} a5 {[%emt 0:02:41]} 19. Qa4 {[%emt 0:01:34]} b5 {[%emt 0:02:13]} 20. Qxb5 {[%emt 0:00:33]} Na7 {[%emt 0:03:28]} 21. Qa6 {[%emt 0:01:01]} Rf7 {[%emt 0:03:56]} 22. Qxe6 {[%emt 0:00:51]} Nf8 {[%emt 0:03:30]} 23. Qa6 {[%emt 0:01:05]} Ra8 {[%emt 0:03:02]} 24. Qd3 {[%emt 0:01:26]} Ne6 {[%emt 0:01:07]} 25. Nxf5 {[%emt 0:00:34]} g6 {[%emt 0:02:00]} 26. Nd6 {[%emt 0:00:15]} Rg7 {[%emt 0:01:53]} 27. Qb3 {[%emt 0:01:22]} g5 {[%emt 0:02:19]} 28. Qxd5 {[%emt 0:00:21]} gxf4 {[%emt 0:01:50]} 29. Qxe6+ {[%emt 0:00:24]} 1-0

[Event "LJ Slovak Open 2022"]
[Site "Liptovsky Jan"]
[Date "2022.06.26"]
[Round "6.43"]
[White "Polacok, Jozef"]
[Black "Dicer, Juraj"]
[Result "1-0"]
[ECO "B22"]
[WhiteElo "1386"]
[BlackElo "1562"]
[Annotator "NA RC"]
[PlyCount "99"]
[EventDate "2022.06.23"]
[EventType "swiss"]
[EventCountry "SVK"]
[SourceTitle "playchess.com"]
[Source "ChessBase"]
[SourceQuality "1"]
[TimeControl "3600+30"]

1. e4 {[%emt 0:00:03]} c5 {[%emt 0:00:07]} 2. c3 {[%emt 0:00:10]} Nc6 {[%emt 0:00:05]} 3. d4 {[%emt 0:00:36]} cxd4 {[%emt 0:00:12]} 4. cxd4 {[%emt 0:00:34]} d6 {[%emt 0:00:24]} 5. Nf3 {[%emt 0:01:17]} Bg4 {[%emt 0:01:33]} 6. Be2 {[%emt 0:00:58]} g6 {[%emt 0:00:43]} 7. O-O {[%emt 0:00:31]} Bg7 {[%emt 0:00:09]} 8. Be3 {[%emt 0:01:16]} Nf6 {[%emt 0:00:28]} 9. Nc3 {[%emt 0:00:59]} O-O {[%emt 0:00:39]} 10. Qd2 {[%emt 0:01:07]} Rc8 {[%emt 0:03:36]} 11. Rac1 {[%emt 0:00:44]} Re8 {[%emt 0:00:07]} 12. h3 {[%emt 0:03:14]} Bd7 {[%emt 0:02:44]} 13. a3 {[%emt 0:01:06]} Qa5 {[%emt 0:01:03]} 14. Bd3 {[%emt 0:03:46]} a6 {[%emt 0:02:21]} 15. Bh6 {[%emt 0:01:03]} Bh8 {[%emt 0:02:41]} 16. Be3 {[%emt 0:00:13]} e6 {[%emt 0:07:11]} 17. Ra1 {[%emt 0:01:02]} Qc7 {[%emt 0:00:19]} 18. b4 {[%emt 0:00:31]} Na7 {[%emt 0:01:22]} 19. Rfc1 {[%emt 0:01:08]} Qb8 {[%emt 0:03:30]} 20. Ra2 {[%emt 0:04:28]} Rc7 {[%emt 0:00:06]} 21. Rac2 {[%emt 0:00:56]} Rec8 {[%emt 0:00:02]} 22. Kh1 {[%emt 0:05:04]} b5 {[%emt 0:00:49]} 23. Kg1 {[%emt 0:01:54]} Qb7 {[%emt 0:01:09]} 24. e5 {[%emt 0:02:35]} dxe5 {[%emt 0:02:20]} 25. dxe5 {[%emt 0:00:07]} Nd5 {[%emt 0:00:48]} 26. Be4 {[%emt 0:00:47]} Bc6 {[%emt 0:02:18]} 27. Bxa7 {[%emt 0:02:01]} Qxa7 {[%emt 0:00:09]} 28. Nxd5 {[%emt 0:00:24]} Bxd5 {[%emt 0:04:25]} 29. Rxc7 {[%emt 0:00:20]} Rxc7 {[%emt 0:00:04]} 30. Rxc7 {[%emt 0:00:09]} Qxc7 {[%emt 0:00:15]} 31. Bxd5 {[%emt 0:00:06]} exd5 {[%emt 0:01:07]} 32. Qxd5 {[%emt 0:00:11]} h6 {[%emt 0:05:42]} 33. e6 {[%emt 0:02:04]} Qc1+ {[%emt 0:07:15]} 34. Kh2 {[%emt 0:00:05]} Qc7+ {[%emt 0:02:55]} 35. Kh1 {[%emt 0:00:58]} Qc1+ {[%emt 0:00:36]} 36. Ng1 {[%emt 0:00:05]} Qc7 {[%emt 0:03:39]} 37. Qa8+ {[%emt 0:00:34]} Kh7 {[%emt 0:00:43]} 38. Qxa6 {[%emt 0:00:26]} fxe6 {[%emt 0:01:01]} 39. Qxe6 {[%emt 0:00:33]} Qc1 {[%emt 0:06:50]} 40. Qd7+ {[%emt 0:00:28]} Bg7 {[%emt 0:00:12]} 41. Qxb5 {[%emt 0:00:27]} Qxa3 {[%emt 0:00:08]} 42. Qb7 {[%emt 0:00:30]} h5 {[%emt 0:02:28]} 43. b5 {[%emt 0:00:17]} Qa1 {[%emt 0:00:49]} 44. b6 {[%emt 0:01:13]} Kh6 {[%emt 0:00:37]} 45. Qa7 {[%emt 0:03:28]} Qb1 {[%emt 0:03:30]} 46. b7 {[%emt 0:00:44]} Be5 {[%emt 0:00:11]} 47. Qe3+ {[%emt 0:01:38]} Kh7 {[%emt 0:01:33]} 48. Qxe5 {[%emt 0:00:24]} Qxb7 {[%emt 0:00:05]} 49. Nf3 {[%emt 0:01:14]} Qb1+ {[%emt 0:01:59]} 50. Kh2 {[%emt 0:00:45]} 1-0

[Event "LJ Slovak Open 2022"]
[Site "Liptovsky Jan"]
[Date "2022.06.26"]
[Round "6.44"]
[White "Carnecky, Viliam"]
[Black "Skutil, Frantisek Elias"]
[Result "1-0"]
[ECO "B22"]
[WhiteElo "1380"]
[BlackElo "1552"]
[Annotator "NA RC"]
[PlyCount "151"]
[EventDate "2022.06.23"]
[EventType "swiss"]
[EventCountry "SVK"]
[SourceTitle "playchess.com"]
[Source "ChessBase"]
[SourceQuality "1"]
[TimeControl "3600+30"]

1. e4 {[%emt 0:00:02]} c5 {[%emt 0:00:05]} 2. c3 {[%emt 0:00:08]} d5 {[%emt 0:02:05]} 3. exd5 {[%emt 0:00:24]} Qxd5 {[%emt 0:02:50]} 4. Nf3 {[%emt 0:00:27]} Nc6 {[%emt 0:00:34]} 5. Na3 {[%emt 0:00:37]} a6 {[%emt 0:01:30]} 6. Bc4 {[%emt 0:01:49]} Qe4+ {[%emt 0:01:04]} 7. Be2 {[%emt 0:01:28]} Nf6 {[%emt 0:02:27]} 8. O-O {[%emt 0:00:59]} e6 {[%emt 0:01:30]} 9. Re1 {[%emt 0:01:22]} Qd5 {[%emt 0:06:29]} 10. Nc2 {[%emt 0:04:04]} Be7 {[%emt 0:02:02]} 11. d4 {[%emt 0:03:29]} cxd4 {[%emt 0:01:22]} 12. Ncxd4 {[%emt 0:02:41]} Nxd4 {[%emt 0:00:43]} 13. Qxd4 {[%emt 0:03:41]} Qxd4 {[%emt 0:01:09]} 14. Nxd4 {[%emt 0:00:05]} O-O {[%emt 0:00:36]} 15. Bf3 {[%emt 0:00:47]} Rd8 {[%emt 0:00:45]} 16. Bf4 {[%emt 0:02:30]} Bd6 {[%emt 0:01:06]} 17. Bxd6 {[%emt 0:02:52]} Rxd6 {[%emt 0:00:17]} 18. Rad1 {[%emt 0:01:28]} Bd7 {[%emt 0:01:09]} 19. Nb3 {[%emt 0:01:43]} Rxd1 {[%emt 0:01:41]} 20. Rxd1 {[%emt 0:00:12]} Rb8 {[%emt 0:00:21]} 21. Nc5 {[%emt 0:01:28]} Bc6 {[%emt 0:00:41]} 22. Bxc6 {[%emt 0:00:41]} bxc6 {[%emt 0:00:59]} 23. Nxa6 {[%emt 0:00:37]} Ra8 {[%emt 0:00:23]} 24. Nb4 {[%emt 0:00:50]} c5 {[%emt 0:01:26]} 25. Nc6 {[%emt 0:02:59]} Nd5 {[%emt 0:00:52]} 26. c4 {[%emt 0:00:51]} Nb6 {[%emt 0:00:51]} 27. b3 {[%emt 0:00:18]} Kf8 {[%emt 0:00:59]} 28. Rd8+ {[%emt 0:01:19]} Rxd8 {[%emt 0:00:18]} 29. Nxd8 {[%emt 0:00:02]} Ke7 {[%emt 0:00:31]} 30. Nb7 {[%emt 0:00:11]} Nd7 {[%emt 0:01:09]} 31. a4 {[%emt 0:00:53]} Kf6 {[%emt 0:00:46]} 32. a5 {[%emt 0:04:48]} Ke5 {[%emt 0:00:30]} 33. a6 {[%emt 0:00:09]} Kd4 {[%emt 0:00:09]} 34. a7 {[%emt 0:00:07]} Nb6 {[%emt 0:00:05]} 35. Kf1 {[%emt 0:01:18]} Kc3 {[%emt 0:01:10]} 36. Nxc5 {[%emt 0:00:37]} Kb4 {[%emt 0:00:05]} 37. Na6+ {[%emt 0:02:10]} Kxb3 {[%emt 0:00:43]} 38. Nc7 {[%emt 0:00:12]} Kxc4 {[%emt 0:00:50]} 39. a8=Q {[%emt 0:00:15]} Nxa8 {[%emt 0:00:02]} 40. Nxa8 {[%emt 0:00:11]} Kb5 {[%emt 0:00:40]} 41. Nc7+ {[%emt 0:00:34]} Kc6 {[%emt 0:00:20]} 42. Ne8 {[%emt 0:00:07]} g6 {[%emt 0:00:06]} 43. Ke2 {[%emt 0:01:15]} h5 {[%emt 0:00:36]} 44. Ke3 {[%emt 0:00:57]} Kd5 {[%emt 0:00:31]} 45. Kf4 {[%emt 0:01:52]} e5+ {[%emt 0:00:54]} 46. Kg5 {[%emt 0:00:14]} Ke6 {[%emt 0:00:34]} 47. Nc7+ {[%emt 0:02:22]} Ke7 {[%emt 0:00:12]} 48. Nd5+ {[%emt 0:01:32]} Ke6 {[%emt 0:00:18]} 49. Nb6 {[%emt 0:00:04]} Ke7 {[%emt 0:01:16]} 50. Kh4 {[%emt 0:06:07]} Kf6 {[%emt 0:00:50]} 51. Kg3 {[%emt 0:00:48]} g5 {[%emt 0:03:52]} 52. Kf3 {[%emt 0:07:48]} Kf5 {[%emt 0:00:27]} 53. Ke3 {[%emt 0:01:49]} Ke6 {[%emt 0:01:38]} 54. h3 {[%emt 0:01:19]} f5 {[%emt 0:00:34]} 55. g4 {[%emt 0:02:14]} hxg4 {[%emt 0:01:37]} 56. hxg4 {[%emt 0:00:39]} e4 {[%emt 0:01:21]} 57. gxf5+ {[%emt 0:00:36]} Kxf5 {[%emt 0:00:10]} 58. Nd5 {[%emt 0:00:17]} g4 {[%emt 0:03:23]} 59. Nc3 {[%emt 0:00:42]} Ke5 {[%emt 0:03:04]} 60. Nxe4 {[%emt 0:01:04]} Kf5 {[%emt 0:00:19]} 61. Ng3+ {[%emt 0:02:00]} Ke5 {[%emt 0:01:05]} 62. Nh5 {[%emt 0:02:33]} Kf5 {[%emt 0:00:19]} 63. Ng7+ {[%emt 0:00:56]} Ke5 {[%emt 0:00:54]} 64. Nh5 {[%emt 0:00:12]} Kf5 {[%emt 0:00:10]} 65. Ng3+ {[%emt 0:00:02]} Ke5 {[%emt 0:00:13]} 66. Nf1 {[%emt 0:01:15]} Kf5 {[%emt 0:00:34]} 67. Nh2 {[%emt 0:00:04]} Kg5 {[%emt 0:01:16]} 68. Ke4 {[%emt 0:00:32]} Kh4 {[%emt 0:00:53]} 69. Nxg4 {[%emt 0:00:28]} Kxg4 {[%emt 0:00:24]} 70. f4 {[%emt 0:00:05]} Kh5 {[%emt 0:00:27]} 71. Kf5 {[%emt 0:00:07]} Kh6 {[%emt 0:00:09]} 72. Kf6 {[%emt 0:00:07]} Kh7 {[%emt 0:00:06]} 73. Kf7 {[%emt 0:00:19]} Kh8 {[%emt 0:00:20]} 74. f5 {[%emt 0:00:38]} Kh7 {[%emt 0:00:07]} 75. f6 {[%emt 0:00:04]} Kh8 {[%emt 0:00:12]} 76. Ke7 {[%emt 0:00:06]} 1-0